[Event "*** Titled Tuesday Blitz"]
[Site "Chess.com"]
[Date "2019.11.05"]
[Round "8"]
[White "pedroholly22"]
[Black "ExploringChess"]
[Result "0-1"]
[WhiteElo "2415"]
[BlackElo "2733"]
[TimeControl "180+2"]
[EndTime "14:51:32 PST"]
[Termination "ExploringChess won by resignation"]

1. e4 {[%clk 0:02:26.1]} 1... e6 {[%clk 0:03:00.3]} 2. d4 {[%clk 0:02:24.8]}
2... d5 {[%clk 0:03:01.7]} 3. Nc3 {[%clk 0:02:26]} 3... Nf6 {[%clk 0:03:02]} 4.
e5 {[%clk 0:02:23.3]} 4... Nfd7 {[%clk 0:03:02.2]} 5. f4 {[%clk 0:02:24.8]} 5...
c5 {[%clk 0:03:02.5]} 6. Nf3 {[%clk 0:02:25.4]} 6... Nc6 {[%clk 0:03:01.6]} 7.
Be3 {[%clk 0:02:27]} 7... a6 {[%clk 0:03:01.7]} 8. Qd2 {[%clk 0:02:27.8]} 8...
Be7 {[%clk 0:03:02.2]} 9. dxc5 {[%clk 0:02:27.8]} 9... Nxc5 {[%clk 0:03:02.6]}
10. Qf2 {[%clk 0:02:27]} 10... Qa5 {[%clk 0:03:01.2]} 11. O-O-O {[%clk
0:02:25.6]} 11... Ne4 {[%clk 0:02:59.9]} 12. Nxe4 {[%clk 0:01:29.6]} 12... dxe4
{[%clk 0:03:01.8]} 13. Nd2 {[%clk 0:01:25.9]} 13... Qxa2 {[%clk 0:03:01.4]} 14.
Bc4 {[%clk 0:01:18.5]} 14... Qa1+ {[%clk 0:02:49]} 15. Nb1 {[%clk 0:01:19]}
15... b5 {[%clk 0:02:48.4]} 16. Bb3 {[%clk 0:00:46.1]} 16... O-O {[%clk
0:02:48.8]} 17. Bc5 {[%clk 0:00:43.5]} 17... a5 {[%clk 0:02:45.6]} 18. Bxe7
{[%clk 0:00:43.9]} 18... Nxe7 {[%clk 0:02:47.5]} 19. Qc5 {[%clk 0:00:44.8]}
19... Nf5 {[%clk 0:02:33.5]} 20. g4 {[%clk 0:00:40.8]} 20... a4 {[%clk
0:02:32.1]} 21. gxf5 {[%clk 0:00:37]} 21... axb3 {[%clk 0:02:32.9]} 22. Rhg1
{[%clk 0:00:29]} 22... g6 {[%clk 0:02:27.4]} 23. Qe7 {[%clk 0:00:21.5]} 23...
Ra2 {[%clk 0:02:22.3]} 24. Rd2 {[%clk 0:00:10.8]} 24... Qxb2+ {[%clk 0:02:16.7]}
25. Kd1 {[%clk 0:00:12.2]} 25... Qxb1+ {[%clk 0:02:18.6]} 26. Ke2 {[%clk
0:00:13.4]} 26... Qxg1 {[%clk 0:02:13.9]} 27. f6 {[%clk 0:00:10.8]} 27... Rxc2
{[%clk 0:02:11.7]} 0-1

[Event "*** Titled Tuesday Blitz"]
[Site "Chess.com"]
[Date "2019.11.05"]
[Round "8"]
[White "JSPrepz"]
[Black "pedro_gines"]
[Result "1-0"]
[WhiteElo "2815"]
[BlackElo "2536"]
[TimeControl "180+2"]
[EndTime "14:52:10 PST"]
[Termination "JSPrepz won by checkmate"]

1. e4 {[%clk 0:02:21.4]} 1... c6 {[%clk 0:03:00]} 2. d4 {[%clk 0:02:21.9]} 2...
d5 {[%clk 0:03:01.9]} 3. Nd2 {[%clk 0:02:23.4]} 3... dxe4 {[%clk 0:03:02.7]} 4.
Nxe4 {[%clk 0:02:25.3]} 4... Bf5 {[%clk 0:03:03.9]} 5. Ng3 {[%clk 0:02:26.8]}
5... Bg6 {[%clk 0:03:05.4]} 6. h4 {[%clk 0:02:28.7]} 6... h6 {[%clk 0:03:06.3]}
7. Nh3 {[%clk 0:02:30.6]} 7... e6 {[%clk 0:03:02.2]} 8. Nf4 {[%clk 0:02:31.9]}
8... Bh7 {[%clk 0:03:03.7]} 9. Bc4 {[%clk 0:02:33.8]} 9... Bd6 {[%clk 0:03:04]}
10. Ngh5 {[%clk 0:02:34.7]} 10... Kf8 {[%clk 0:03:03.6]} 11. Qg4 {[%clk
0:02:32.6]} 11... g6 {[%clk 0:03:04.4]} 12. Ng3 {[%clk 0:02:28.3]} 12... Nf6
{[%clk 0:03:04.1]} 13. Qf3 {[%clk 0:02:29.5]} 13... Nbd7 {[%clk 0:02:59.3]} 14.
Bd2 {[%clk 0:02:22.6]} 14... Nb6 {[%clk 0:02:58.2]} 15. Bb3 {[%clk 0:02:16.9]}
15... Nbd5 {[%clk 0:02:58.2]} 16. O-O-O {[%clk 0:02:12.5]} 16... Kg7 {[%clk
0:02:28.8]} 17. Nd3 {[%clk 0:02:05.1]} 17... a5 {[%clk 0:02:20.3]} 18. a3 {[%clk
0:02:01.9]} 18... b5 {[%clk 0:02:19.2]} 19. Ne5 {[%clk 0:01:54.1]} 19... c5
{[%clk 0:02:05.1]} 20. Bxd5 {[%clk 0:01:52.6]} 20... exd5 {[%clk 0:01:46.7]} 21.
Bxh6+ {[%clk 0:01:53.4]} 21... Kg8 {[%clk 0:01:46.5]} 22. Nc6 {[%clk 0:01:43.6]}
22... Bf8 {[%clk 0:01:03.4]} 23. Nxd8 {[%clk 0:01:37.4]} 23... Bxh6+ {[%clk
0:01:03.2]} 24. Kb1 {[%clk 0:01:39]} 24... Kg7 {[%clk 0:01:01.7]} 25. Nc6 {[%clk
0:01:33.8]} 25... cxd4 {[%clk 0:01:01.3]} 26. h5 {[%clk 0:01:30.3]} 26... g5
{[%clk 0:01:00.5]} 27. Nxd4 {[%clk 0:01:30.8]} 27... Ne4 {[%clk 0:00:57.5]} 28.
Ngf5+ {[%clk 0:01:31]} 28... Bxf5 {[%clk 0:00:58.2]} 29. Nxf5+ {[%clk
0:01:32.2]} 29... Kh7 {[%clk 0:00:59.6]} 30. Rxd5 {[%clk 0:01:33.2]} 30... Rhe8
{[%clk 0:00:52.4]} 31. Nxh6 {[%clk 0:01:34]} 31... Kxh6 {[%clk 0:00:53.2]} 32.
Qxf7 {[%clk 0:01:34.3]} 32... Nc3+ {[%clk 0:00:48.9]} 33. bxc3 {[%clk
0:01:34.5]} 33... Re1+ {[%clk 0:00:50]} 34. Rxe1 {[%clk 0:01:35.9]} 34... Ra6
{[%clk 0:00:50.9]} 35. Re6+ {[%clk 0:01:37.8]} 35... Rxe6 {[%clk 0:00:50.8]} 36.
Qxe6+ {[%clk 0:01:39.7]} 36... Kxh5 {[%clk 0:00:52.1]} 37. Qh3+ {[%clk
0:01:39.1]} 37... Kg6 {[%clk 0:00:52.5]} 38. Rd6+ {[%clk 0:01:41]} 38... Kg7
{[%clk 0:00:53.9]} 39. Qh6+ {[%clk 0:01:42]} 39... Kg8 {[%clk 0:00:55.8]} 40.
Rf6 {[%clk 0:01:37.4]} 40... g4 {[%clk 0:00:57.7]} 41. Rf8# {[%clk 0:01:39]} 1-0

[Event "*** Titled Tuesday Blitz"]
[Site "Chess.com"]
[Date "2019.11.05"]
[Round "8"]
[White "nitpicker"]
[Black "boasovietica"]
[Result "1-0"]
[WhiteElo "2324"]
[BlackElo "2424"]
[TimeControl "180+2"]
[EndTime "14:52:18 PST"]
[Termination "nitpicker won by resignation"]

1. d4 {[%clk 0:03:01.9]} 1... Nf6 {[%clk 0:02:59]} 2. c4 {[%clk 0:03:02.6]} 2...
g6 {[%clk 0:02:58]} 3. Nc3 {[%clk 0:03:03.2]} 3... Bg7 {[%clk 0:02:59.4]} 4. e4
{[%clk 0:03:03.3]} 4... O-O {[%clk 0:02:59.1]} 5. Be2 {[%clk 0:03:04.1]} 5... d6
{[%clk 0:02:57.9]} 6. Nf3 {[%clk 0:03:05.2]} 6... c5 {[%clk 0:02:56.3]} 7. d5
{[%clk 0:03:03.6]} 7... e5 {[%clk 0:02:50.6]} 8. h3 {[%clk 0:02:58.2]} 8... Ne8
{[%clk 0:02:44.1]} 9. g4 {[%clk 0:02:57.6]} 9... a6 {[%clk 0:02:38]} 10. Bd3
{[%clk 0:02:53.6]} 10... Kh8 {[%clk 0:02:34.6]} 11. Bd2 {[%clk 0:02:49.3]} 11...
f5 {[%clk 0:02:26.1]} 12. gxf5 {[%clk 0:02:47.5]} 12... gxf5 {[%clk 0:02:27.2]}
13. exf5 {[%clk 0:02:48.2]} 13... Bxf5 {[%clk 0:02:26.5]} 14. Ne4 {[%clk
0:02:30.7]} 14... Nd7 {[%clk 0:02:23.8]} 15. Qe2 {[%clk 0:02:27.8]} 15... Ndf6
{[%clk 0:02:00.4]} 16. Nfg5 {[%clk 0:02:12.8]} 16... Nxe4 {[%clk 0:01:56.5]} 17.
Bxe4 {[%clk 0:02:12]} 17... Bxe4 {[%clk 0:01:50.1]} 18. Qxe4 {[%clk 0:02:12.8]}
18... Nf6 {[%clk 0:01:50.9]} 19. Qh4 {[%clk 0:02:13.7]} 19... Qe7 {[%clk
0:01:40.5]} 20. Rg1 {[%clk 0:02:08.1]} 20... Rg8 {[%clk 0:01:30.4]} 21. Nxh7
{[%clk 0:02:04.5]} 21... Bh6 {[%clk 0:01:15.7]} 22. Nxf6 {[%clk 0:01:34.6]}
22... Rxg1+ {[%clk 0:00:56.8]} 23. Ke2 {[%clk 0:01:35.2]} 23... Rg6 {[%clk
0:00:36.1]} 24. Bxh6 {[%clk 0:01:06.8]} 24... Rxf6 {[%clk 0:00:26.9]} 25. Bf8+
{[%clk 0:00:58.1]} 25... Qh7 {[%clk 0:00:27.3]} 26. Qxf6+ {[%clk 0:00:58.8]} 1-0

[Event "*** Titled Tuesday Blitz"]
[Site "Chess.com"]
[Date "2019.11.05"]
[Round "8"]
[White "Vasily85"]
[Black "colegiodemadrid"]
[Result "0-1"]
[WhiteElo "2232"]
[BlackElo "2419"]
[TimeControl "180+2"]
[EndTime "14:52:33 PST"]
[Termination "colegiodemadrid won by resignation"]

1. d4 {[%clk 0:03:01.9]} 1... d5 {[%clk 0:02:59.3]} 2. Nf3 {[%clk 0:03:00]} 2...
e6 {[%clk 0:02:58.2]} 3. c4 {[%clk 0:03:00.9]} 3... Nf6 {[%clk 0:02:58.9]} 4. g3
{[%clk 0:03:01.8]} 4... dxc4 {[%clk 0:02:59.6]} 5. Bg2 {[%clk 0:03:02.7]} 5...
a6 {[%clk 0:02:59]} 6. O-O {[%clk 0:02:59.7]} 6... Nc6 {[%clk 0:02:58.3]} 7. e3
{[%clk 0:02:53.8]} 7... Rb8 {[%clk 0:02:56.2]} 8. Nfd2 {[%clk 0:02:51.5]} 8...
e5 {[%clk 0:02:56.1]} 9. Nxc4 {[%clk 0:02:42.3]} 9... exd4 {[%clk 0:02:51.6]}
10. Re1 {[%clk 0:02:18]} 10... dxe3 {[%clk 0:02:48.7]} 11. Qb3 {[%clk
0:02:18.5]} 11... Be6 {[%clk 0:02:45.4]} 12. Bxe3 {[%clk 0:02:16]} 12... Be7
{[%clk 0:02:41]} 13. Nbd2 {[%clk 0:01:44.3]} 13... O-O {[%clk 0:02:41.5]} 14.
Rad1 {[%clk 0:01:44.6]} 14... Na5 {[%clk 0:02:36.7]} 15. Qc2 {[%clk 0:01:32.5]}
15... Nxc4 {[%clk 0:02:32.5]} 16. Nxc4 {[%clk 0:01:34.4]} 16... Qc8 {[%clk
0:02:31.8]} 17. Na5 {[%clk 0:01:10.5]} 17... c6 {[%clk 0:02:25.6]} 18. Ba7
{[%clk 0:00:52.7]} 18... Ra8 {[%clk 0:02:23.4]} 19. Bb6 {[%clk 0:00:41.9]} 19...
Bb4 {[%clk 0:02:18.9]} 20. Rf1 {[%clk 0:00:21.9]} 20... Nd5 {[%clk 0:02:17.2]}
21. Bxd5 {[%clk 0:00:22.4]} 21... Bxd5 {[%clk 0:02:18.4]} 22. a3 {[%clk
0:00:23.1]} 22... Bd6 {[%clk 0:02:09]} 23. Bc5 {[%clk 0:00:23.6]} 23... Qh3
{[%clk 0:01:58.4]} 24. f3 {[%clk 0:00:24.8]} 24... Bxc5+ {[%clk 0:01:51.2]} 25.
Qxc5 {[%clk 0:00:26.7]} 25... Rab8 {[%clk 0:01:50.1]} 26. Qc2 {[%clk 0:00:25]}
26... Rfe8 {[%clk 0:01:47.2]} 27. Qf2 {[%clk 0:00:21.9]} 27... b6 {[%clk
0:01:42.4]} 28. Rxd5 {[%clk 0:00:23]} 28... cxd5 {[%clk 0:01:40]} 29. Nc6 {[%clk
0:00:24.9]} 29... Rb7 {[%clk 0:01:40.9]} 30. Re1 {[%clk 0:00:22.7]} 30... Rxe1+
{[%clk 0:01:31.9]} 31. Qxe1 {[%clk 0:00:24.6]} 31... Qe6 {[%clk 0:01:32.9]} 32.
Qc3 {[%clk 0:00:24.2]} 32... Rc7 {[%clk 0:01:30.8]} 33. Nd4 {[%clk 0:00:15.7]}
33... Rxc3 {[%clk 0:01:31]} 34. Nxe6 {[%clk 0:00:17.6]} 34... Rc1+ {[%clk
0:01:32.5]} 0-1

[Event "*** Titled Tuesday Blitz"]
[Site "Chess.com"]
[Date "2019.11.05"]
[Round "8"]
[White "politeplayer"]
[Black "Oligan22"]
[Result "0-1"]
[WhiteElo "2246"]
[BlackElo "2468"]
[TimeControl "180+2"]
[EndTime "14:52:53 PST"]
[Termination "Oligan22 won on time"]

1. e4 {[%clk 0:03:01.9]} 1... c6 {[%clk 0:02:54.7]} 2. d4 {[%clk 0:03:01.2]}
2... d5 {[%clk 0:02:55.7]} 3. Nc3 {[%clk 0:03:01.7]} 3... dxe4 {[%clk
0:02:56.2]} 4. f3 {[%clk 0:03:02.7]} 4... exf3 {[%clk 0:02:54.5]} 5. Nxf3 {[%clk
0:03:03]} 5... Nf6 {[%clk 0:02:56.1]} 6. Bd3 {[%clk 0:03:03.5]} 6... Bg4 {[%clk
0:02:54.4]} 7. Be3 {[%clk 0:02:46.1]} 7... e6 {[%clk 0:02:50.5]} 8. O-O {[%clk
0:02:45.9]} 8... Bd6 {[%clk 0:02:45.6]} 9. Qe1 {[%clk 0:02:41.9]} 9... Nbd7
{[%clk 0:02:43.5]} 10. h3 {[%clk 0:01:54.7]} 10... Bxf3 {[%clk 0:02:44.2]} 11.
Rxf3 {[%clk 0:01:54.8]} 11... Qc7 {[%clk 0:02:46.1]} 12. a4 {[%clk 0:01:46.3]}
12... O-O-O {[%clk 0:02:43.7]} 13. a5 {[%clk 0:01:47]} 13... e5 {[%clk
0:02:36.4]} 14. a6 {[%clk 0:01:41.5]} 14... b6 {[%clk 0:02:37.2]} 15. dxe5
{[%clk 0:01:31.4]} 15... Nxe5 {[%clk 0:02:38.1]} 16. Bf5+ {[%clk 0:01:32]} 16...
Kb8 {[%clk 0:02:38.7]} 17. Rf1 {[%clk 0:01:24.8]} 17... Rhe8 {[%clk 0:02:37.1]}
18. Kh1 {[%clk 0:01:14.9]} 18... Nc4 {[%clk 0:02:35.6]} 19. Nd1 {[%clk
0:01:07.3]} 19... Nh5 {[%clk 0:02:27.3]} 20. Rf3 {[%clk 0:01:03.8]} 20... Ng3+
{[%clk 0:02:22.5]} 21. Kg1 {[%clk 0:00:56.9]} 21... Nxe3 {[%clk 0:02:19.8]} 22.
Nxe3 {[%clk 0:00:53.5]} 22... Rxe3 {[%clk 0:02:06.5]} 23. Rxe3 {[%clk
0:00:30.3]} 23... Nxf5 {[%clk 0:02:06.9]} 24. Rd3 {[%clk 0:00:28.3]} 24... Ng3
{[%clk 0:01:53.4]} 25. b4 {[%clk 0:00:17]} 25... Nf5 {[%clk 0:01:42.6]} 26. Rad1
{[%clk 0:00:16.6]} 26... h5 {[%clk 0:01:37.8]} 27. Qe4 {[%clk 0:00:16.8]} 27...
Bh2+ {[%clk 0:01:37.2]} 28. Kh1 {[%clk 0:00:13]} 28... Ng3+ {[%clk 0:01:36.4]}
29. Rxg3 {[%clk 0:00:12.8]} 29... Bxg3 {[%clk 0:01:29.1]} 30. Rxd8+ {[%clk
0:00:09.5]} 30... Qxd8 {[%clk 0:01:31]} 31. Qf3 {[%clk 0:00:04.9]} 31... h4
{[%clk 0:01:32.2]} 32. b5 {[%clk 0:00:04.9]} 32... Qd4 {[%clk 0:01:25.5]} 0-1

[Event "*** Titled Tuesday Blitz"]
[Site "Chess.com"]
[Date "2019.11.05"]
[Round "8"]
[White "dennisodessa"]
[Black "DonPreuss"]
[Result "0-1"]
[WhiteElo "2173"]
[BlackElo "2131"]
[TimeControl "180+2"]
[EndTime "14:52:58 PST"]
[Termination "DonPreuss won by resignation"]

1. d4 {[%clk 0:02:57.5]} 1... Nc6 {[%clk 0:02:59.8]} 2. d5 {[%clk 0:02:57]} 2...
Ne5 {[%clk 0:03:00]} 3. Nf3 {[%clk 0:02:57.7]} 3... Ng6 {[%clk 0:03:01.3]} 4. e4
{[%clk 0:02:57.8]} 4... e5 {[%clk 0:03:02.8]} 5. c4 {[%clk 0:02:49.3]} 5... Bb4+
{[%clk 0:02:57.4]} 6. Bd2 {[%clk 0:02:49.2]} 6... Bxd2+ {[%clk 0:02:58]} 7. Qxd2
{[%clk 0:02:51.1]} 7... d6 {[%clk 0:02:59.5]} 8. Nc3 {[%clk 0:02:52.2]} 8...
N8e7 {[%clk 0:03:00.5]} 9. h4 {[%clk 0:02:51.2]} 9... O-O {[%clk 0:03:00.1]} 10.
h5 {[%clk 0:02:51.3]} 10... Nh8 {[%clk 0:02:59.8]} 11. Bd3 {[%clk 0:02:51.9]}
11... h6 {[%clk 0:02:59.9]} 12. Nh4 {[%clk 0:02:47.9]} 12... f5 {[%clk
0:02:56.1]} 13. exf5 {[%clk 0:02:47.3]} 13... Nxf5 {[%clk 0:02:56.8]} 14. Nxf5
{[%clk 0:02:47.8]} 14... Bxf5 {[%clk 0:02:58.4]} 15. Bxf5 {[%clk 0:02:47.8]}
15... Rxf5 {[%clk 0:02:59.8]} 16. O-O-O {[%clk 0:02:45]} 16... Qg5 {[%clk
0:02:57.6]} 17. f3 {[%clk 0:02:42.2]} 17... Qxd2+ {[%clk 0:02:55.1]} 18. Rxd2
{[%clk 0:02:44.1]} 18... Nf7 {[%clk 0:02:54.7]} 19. Ne4 {[%clk 0:02:44.4]} 19...
Ng5 {[%clk 0:02:54.5]} 20. Nxg5 {[%clk 0:02:35.9]} 20... Rxg5 {[%clk 0:02:56.4]}
21. Rh4 {[%clk 0:02:32.5]} 21... Rf8 {[%clk 0:02:53.9]} 22. Rd3 {[%clk
0:02:30.1]} 22... Rgf5 {[%clk 0:02:53.8]} 23. Re3 {[%clk 0:02:25.2]} 23... Rf4
{[%clk 0:02:54.2]} 24. Re4 {[%clk 0:02:26.3]} 24... Rxh4 {[%clk 0:02:51.3]} 25.
Rxh4 {[%clk 0:02:26.6]} 25... Rf5 {[%clk 0:02:52.5]} 26. Kd2 {[%clk 0:02:26.4]}
26... Rg5 {[%clk 0:02:39.9]} 27. g4 {[%clk 0:02:23.7]} 27... Kh7 {[%clk
0:02:37.1]} 28. Ke3 {[%clk 0:02:23]} 28... g6 {[%clk 0:02:38.2]} 29. hxg6+
{[%clk 0:02:24.8]} 29... Rxg6 {[%clk 0:02:39.1]} 30. b3 {[%clk 0:02:11.3]} 30...
Kg7 {[%clk 0:02:39.3]} 31. Rh1 {[%clk 0:01:48.8]} 31... Rf6 {[%clk 0:02:39.7]}
32. Rc1 {[%clk 0:01:49.1]} 32... b6 {[%clk 0:02:33.5]} 33. a3 {[%clk 0:01:41.3]}
33... Rf4 {[%clk 0:02:27.8]} 34. Rd1 {[%clk 0:01:28.8]} 34... Kf6 {[%clk
0:02:21.5]} 35. Rh1 {[%clk 0:01:25.1]} 35... Kg5 {[%clk 0:02:22.2]} 36. Rh5+
{[%clk 0:01:24.7]} 36... Kg6 {[%clk 0:02:23.2]} 37. Rh2 {[%clk 0:01:24.5]} 37...
a6 {[%clk 0:02:21.6]} 38. Rd2 {[%clk 0:01:23.9]} 38... Kg5 {[%clk 0:02:21.7]}
39. Rh2 {[%clk 0:01:24.2]} 39... Rd4 {[%clk 0:02:13.7]} 40. a4 {[%clk
0:01:17.3]} 40... Rd1 {[%clk 0:02:05.5]} 41. a5 {[%clk 0:01:11.4]} 41... Rb1
{[%clk 0:02:01.3]} 42. Ke4 {[%clk 0:01:07.9]} 42... Rxb3 {[%clk 0:01:59.5]} 43.
axb6 {[%clk 0:01:07.9]} 43... cxb6 {[%clk 0:01:58.3]} 44. Ra2 {[%clk 0:01:08.5]}
44... a5 {[%clk 0:01:59.1]} 45. Rh2 {[%clk 0:01:06.1]} 45... a4 {[%clk
0:01:58.5]} 46. Rh5+ {[%clk 0:01:04.6]} 46... Kg6 {[%clk 0:01:58.5]} 47. f4
{[%clk 0:01:04.1]} 47... exf4 {[%clk 0:01:59.5]} 48. Kxf4 {[%clk 0:01:06]} 48...
a3 {[%clk 0:02:00.3]} 49. Rh1 {[%clk 0:01:05.2]} 49... Rc3 {[%clk 0:01:58.4]}
50. Rb1 {[%clk 0:01:00.2]} 50... Rxc4+ {[%clk 0:01:57.7]} 51. Ke3 {[%clk
0:00:59.8]} 51... a2 {[%clk 0:01:58.9]} 52. Ra1 {[%clk 0:01:00.3]} 52... Ra4
{[%clk 0:01:59.2]} 0-1

[Event "*** Titled Tuesday Blitz"]
[Site "Chess.com"]
[Date "2019.11.05"]
[Round "8"]
[White "13MiRacLe"]
[Black "DishonorOnYourCow"]
[Result "1-0"]
[WhiteElo "2589"]
[BlackElo "2251"]
[TimeControl "180+2"]
[EndTime "14:53:11 PST"]
[Termination "13MiRacLe won by resignation"]

1. e4 {[%clk 0:03:01.9]} 1... c5 {[%clk 0:02:55.4]} 2. Nf3 {[%clk 0:03:02.7]}
2... d6 {[%clk 0:02:56.2]} 3. d4 {[%clk 0:03:04.2]} 3... cxd4 {[%clk 0:02:57.2]}
4. Nxd4 {[%clk 0:03:06.1]} 4... Nf6 {[%clk 0:02:58.4]} 5. Nc3 {[%clk 0:03:07.6]}
5... a6 {[%clk 0:02:58.3]} 6. Be2 {[%clk 0:03:08.2]} 6... e5 {[%clk 0:02:59.1]}
7. Nb3 {[%clk 0:03:09.6]} 7... Be7 {[%clk 0:03:00.3]} 8. Be3 {[%clk 0:03:08.5]}
8... Be6 {[%clk 0:03:00.9]} 9. h4 {[%clk 0:03:08.4]} 9... h5 {[%clk 0:02:48.2]}
10. Nd5 {[%clk 0:03:07.6]} 10... Nxd5 {[%clk 0:02:02.6]} 11. exd5 {[%clk
0:03:08.3]} 11... Bf5 {[%clk 0:02:03.1]} 12. g3 {[%clk 0:03:01]} 12... Be4
{[%clk 0:01:42.3]} 13. Bf3 {[%clk 0:02:58.9]} 13... Bxf3 {[%clk 0:01:42.2]} 14.
Qxf3 {[%clk 0:03:00.5]} 14... Nd7 {[%clk 0:01:41.2]} 15. O-O-O {[%clk
0:02:58.3]} 15... b5 {[%clk 0:01:38.2]} 16. Kb1 {[%clk 0:02:57.8]} 16... a5
{[%clk 0:01:34.2]} 17. Nd2 {[%clk 0:02:54.6]} 17... a4 {[%clk 0:01:32]} 18. g4
{[%clk 0:02:49.2]} 18... a3 {[%clk 0:01:15.3]} 19. b3 {[%clk 0:02:49.9]} 19...
hxg4 {[%clk 0:01:06]} 20. Qxg4 {[%clk 0:02:51.8]} 20... g6 {[%clk 0:01:06.7]}
21. h5 {[%clk 0:02:52.2]} 21... Nf6 {[%clk 0:01:07.4]} 22. Qb4 {[%clk
0:02:50.1]} 22... Rxh5 {[%clk 0:01:00.4]} 23. Rxh5 {[%clk 0:02:48.6]} 23... Nxh5
{[%clk 0:00:58.2]} 24. Qxb5+ {[%clk 0:02:50.1]} 24... Qd7 {[%clk 0:00:59.2]} 25.
Qxd7+ {[%clk 0:02:45.8]} 25... Kxd7 {[%clk 0:01:00.2]} 26. c4 {[%clk 0:02:47.7]}
26... f5 {[%clk 0:00:59.4]} 27. f3 {[%clk 0:02:49]} 27... g5 {[%clk 0:00:47.1]}
28. Rh1 {[%clk 0:02:47]} 28... Rh8 {[%clk 0:00:36.2]} 29. Kc2 {[%clk 0:02:47.2]}
29... g4 {[%clk 0:00:35.8]} 30. fxg4 {[%clk 0:02:47.8]} 30... fxg4 {[%clk
0:00:37.6]} 31. Ne4 {[%clk 0:02:48.3]} 31... Ke8 {[%clk 0:00:18.5]} 32. Ng3
{[%clk 0:02:39.5]} 32... Nxg3 {[%clk 0:00:10.7]} 33. Rxh8+ {[%clk 0:02:39.8]}
33... Kf7 {[%clk 0:00:09.9]} 34. Rh7+ {[%clk 0:02:39.5]} 34... Kf8 {[%clk
0:00:04.3]} 35. Bh6+ {[%clk 0:02:39.5]} 35... Ke8 {[%clk 0:00:05.5]} 36. Be3
{[%clk 0:02:13.3]} 36... Nf5 {[%clk 0:00:05.9]} 37. Kd3 {[%clk 0:02:14.2]} 37...
g3 {[%clk 0:00:04.9]} 38. Ke4 {[%clk 0:02:10.2]} 38... Nh4 {[%clk 0:00:02.8]}
39. Rxe7+ {[%clk 0:02:06.9]} 39... Kxe7 {[%clk 0:00:03.6]} 40. Bg5+ {[%clk
0:02:07.6]} 40... Kd7 {[%clk 0:00:03.3]} 41. Bxh4 {[%clk 0:02:08.6]} 41... g2
{[%clk 0:00:04.4]} 42. Bf2 {[%clk 0:02:09.6]} 42... Kc7 {[%clk 0:00:05.5]} 43.
Kf3 {[%clk 0:02:10.6]} 43... Kb7 {[%clk 0:00:04.9]} 44. Kxg2 {[%clk 0:02:11.7]}
44... Ka6 {[%clk 0:00:06]} 45. b4 {[%clk 0:02:13.1]} 45... Kb7 {[%clk
0:00:06.7]} 46. Kf3 {[%clk 0:02:14.5]} 46... Kc7 {[%clk 0:00:08.1]} 47. Ke4
{[%clk 0:02:16]} 47... Kd7 {[%clk 0:00:09.4]} 48. c5 {[%clk 0:02:17.5]} 1-0

[Event "*** Titled Tuesday Blitz"]
[Site "Chess.com"]
[Date "2019.11.05"]
[Round "8"]
[White "TheFireChess"]
[Black "Perecke"]
[Result "1-0"]
[WhiteElo "2513"]
[BlackElo "2141"]
[TimeControl "180+2"]
[EndTime "14:53:14 PST"]
[Termination "TheFireChess won on time"]

1. e4 {[%clk 0:03:01.9]} 1... e5 {[%clk 0:02:57.6]} 2. Nf3 {[%clk 0:03:00.2]}
2... Nc6 {[%clk 0:02:56.7]} 3. Bc4 {[%clk 0:03:00.4]} 3... Bc5 {[%clk
0:02:57.5]} 4. c3 {[%clk 0:03:01.6]} 4... Nf6 {[%clk 0:02:58]} 5. d3 {[%clk
0:03:03.1]} 5... O-O {[%clk 0:02:54.5]} 6. Nbd2 {[%clk 0:03:04.5]} 6... d5
{[%clk 0:02:55.2]} 7. Bb5 {[%clk 0:03:04.4]} 7... Re8 {[%clk 0:02:50.8]} 8. O-O
{[%clk 0:03:04.1]} 8... Bd7 {[%clk 0:02:51.6]} 9. Re1 {[%clk 0:03:04.3]} 9... a6
{[%clk 0:02:42.9]} 10. Ba4 {[%clk 0:03:04.3]} 10... b5 {[%clk 0:02:16.7]} 11.
Bc2 {[%clk 0:03:03]} 11... Bg4 {[%clk 0:02:16]} 12. Qe2 {[%clk 0:02:57.5]} 12...
Nh5 {[%clk 0:01:54.3]} 13. Nb3 {[%clk 0:02:39.6]} 13... Bb6 {[%clk 0:01:45.8]}
14. h3 {[%clk 0:02:38.4]} 14... Ng3 {[%clk 0:00:58.6]} 15. Qd1 {[%clk
0:01:45.2]} 15... Be6 {[%clk 0:00:20.9]} 16. Be3 {[%clk 0:01:29.4]} 16... Bxe3
{[%clk 0:00:20.8]} 17. Rxe3 {[%clk 0:01:27.4]} 17... d4 {[%clk 0:00:18.2]} 18.
Re1 {[%clk 0:01:14.4]} 18... Nh5 {[%clk 0:00:15.5]} 19. cxd4 {[%clk 0:01:10.1]}
19... exd4 {[%clk 0:00:12.4]} 20. Qd2 {[%clk 0:00:45.3]} 20... Nf6 {[%clk
0:00:07.4]} 21. a4 {[%clk 0:00:44.2]} 21... Qd7 {[%clk 0:00:07.1]} 22. Nc5
{[%clk 0:00:41.6]} 22... Qd6 {[%clk 0:00:05.4]} 23. b4 {[%clk 0:00:30.6]} 23...
a5 {[%clk 0:00:03]} 24. e5 {[%clk 0:00:20.6]} 1-0